[Event "Late-Titled-Tuesday-Blitz-February-13-2024"]
[Site "Chess.com"]
[Date "2024.02.13"]
[Round "10"]
[White "FredddieCroderg"]
[Black "N_Mullodzhanov"]
[Result "1-0"]
[WhiteElo "2292"]
[BlackElo "2478"]
[TimeControl "180+1"]
[EndTime "15:56:40 PST"]
[Termination "FredddieCroderg won by checkmate"]

1. e4 {[%clk 0:03:00.9]} 1... c6 {[%clk 0:02:59.8]} 2. Bc4 {[%clk 0:02:57.4]}
2... d5 {[%clk 0:02:59.8]} 3. Bb3 {[%clk 0:02:57.4]} 3... dxe4 {[%clk
0:02:56.6]} 4. f3 {[%clk 0:02:57]} 4... exf3 {[%clk 0:02:55.1]} 5. Nxf3 {[%clk
0:02:56.3]} 5... e6 {[%clk 0:02:55.5]} 6. O-O {[%clk 0:02:55.8]} 6... Nf6 {[%clk
0:02:55.6]} 7. d4 {[%clk 0:02:55.5]} 7... Bd6 {[%clk 0:02:55.5]} 8. c3 {[%clk
0:02:55.1]} 8... O-O {[%clk 0:02:55.7]} 9. Qe1 {[%clk 0:02:54.8]} 9... Nd5
{[%clk 0:02:47]} 10. Bg5 {[%clk 0:02:52.7]} 10... Be7 {[%clk 0:02:45.5]} 11.
Bxe7 {[%clk 0:02:52.5]} 11... Qxe7 {[%clk 0:02:45.7]} 12. Bc2 {[%clk 0:02:52]}
12... Nd7 {[%clk 0:02:44.9]} 13. Nbd2 {[%clk 0:02:51.6]} 13... g6 {[%clk
0:02:44.3]} 14. Ne4 {[%clk 0:02:48.8]} 14... N7f6 {[%clk 0:02:43.9]} 15. Ne5
{[%clk 0:02:45.9]} 15... Nxe4 {[%clk 0:02:43.7]} 16. Qxe4 {[%clk 0:02:45.2]}
16... Kg7 {[%clk 0:02:38.5]} 17. Rf3 {[%clk 0:02:43.7]} 17... f5 {[%clk
0:02:32.7]} 18. Qe2 {[%clk 0:02:34.5]} 18... c5 {[%clk 0:02:30.8]} 19. dxc5
{[%clk 0:02:29.8]} 19... Qxc5+ {[%clk 0:02:30.9]} 20. Kh1 {[%clk 0:02:29.4]}
20... Qc7 {[%clk 0:02:26.7]} 21. Rh3 {[%clk 0:02:26.3]} 21... Bd7 {[%clk
0:02:24.8]} 22. Re1 {[%clk 0:02:15.6]} 22... Rae8 {[%clk 0:02:13.5]} 23. Qd2
{[%clk 0:02:15]} 23... f4 {[%clk 0:02:13.9]} 24. Qd4 {[%clk 0:01:45.3]} 24...
Nf6 {[%clk 0:01:24.6]} 25. Rf1 {[%clk 0:01:17.8]} 25... Qb6 {[%clk 0:01:08.4]}
26. Rxf4 {[%clk 0:00:39.8]} 26... Qxd4 {[%clk 0:00:58.2]} 27. Rxd4 {[%clk
0:00:34.7]} 27... Bc6 {[%clk 0:00:36]} 28. Nxc6 {[%clk 0:00:34.2]} 28... bxc6
{[%clk 0:00:36.9]} 29. Rf3 {[%clk 0:00:31.1]} 29... e5 {[%clk 0:00:35]} 30. Rd6
{[%clk 0:00:28.2]} 30... e4 {[%clk 0:00:35]} 31. Rf1 {[%clk 0:00:24.6]} 31... e3
{[%clk 0:00:33.6]} 32. Kg1 {[%clk 0:00:21]} 32... e2 {[%clk 0:00:27.5]} 33. Re1
{[%clk 0:00:20.9]} 33... Nd5 {[%clk 0:00:27]} 34. Bd3 {[%clk 0:00:18.1]} 34...
Nf4 {[%clk 0:00:15.3]} 35. Bc4 {[%clk 0:00:18.2]} 35... Re4 {[%clk 0:00:12.4]}
36. b3 {[%clk 0:00:14.5]} 36... c5 {[%clk 0:00:12.2]} 37. Rd7+ {[%clk
0:00:13.9]} 37... Kh6 {[%clk 0:00:11.4]} 38. g3 {[%clk 0:00:10.4]} 38... Nh3+
{[%clk 0:00:10.9]} 39. Kg2 {[%clk 0:00:10.5]} 39... Ng5 {[%clk 0:00:04.6]} 40.
Rxe2 {[%clk 0:00:10.1]} 40... Rxe2+ {[%clk 0:00:04.8]} 41. Bxe2 {[%clk 0:00:10]}
41... a5 {[%clk 0:00:05.2]} 42. Bc4 {[%clk 0:00:09.9]} 42... Re8 {[%clk
0:00:04.7]} 43. h4 {[%clk 0:00:09.8]} 43... Ne4 {[%clk 0:00:04.5]} 44. Kf3
{[%clk 0:00:08.8]} 44... Nxc3 {[%clk 0:00:04.8]} 45. g4 {[%clk 0:00:07]} 45...
Ne4 {[%clk 0:00:02.4]} 46. g5+ {[%clk 0:00:05.7]} 46... Nxg5+ {[%clk 0:00:02.8]}
47. hxg5+ {[%clk 0:00:05.9]} 47... Kxg5 {[%clk 0:00:03.7]} 48. Rxh7 {[%clk
0:00:06]} 48... Re1 {[%clk 0:00:04.1]} 49. Rc7 {[%clk 0:00:06]} 49... Re5 {[%clk
0:00:02.9]} 50. Kg3 {[%clk 0:00:05.2]} 50... Re3+ {[%clk 0:00:02.9]} 51. Kf2
{[%clk 0:00:05.4]} 51... Re5 {[%clk 0:00:03.8]} 52. Kf3 {[%clk 0:00:05.8]} 52...
Kf6 {[%clk 0:00:03.9]} 53. a4 {[%clk 0:00:06.2]} 53... g5 {[%clk 0:00:04.2]} 54.
Ra7 {[%clk 0:00:06.4]} 54... Rf5+ {[%clk 0:00:02.8]} 55. Kg4 {[%clk 0:00:05.6]}
55... Rf4+ {[%clk 0:00:02.9]} 56. Kg3 {[%clk 0:00:06.3]} 56... Kf5 {[%clk
0:00:02.9]} 57. Rxa5 {[%clk 0:00:06.3]} 57... Ke5 {[%clk 0:00:03.3]} 58. Rxc5+
{[%clk 0:00:06.3]} 58... Kd4 {[%clk 0:00:04.2]} 59. Rxg5 {[%clk 0:00:06.2]}
59... Rf8 {[%clk 0:00:05.1]} 60. Rg4+ {[%clk 0:00:06.3]} 60... Kc3 {[%clk
0:00:05.6]} 61. Rf4 {[%clk 0:00:07.2]} 61... Rb8 {[%clk 0:00:04.8]} 62. Kf3
{[%clk 0:00:07.1]} 62... Kb4 {[%clk 0:00:05.4]} 63. Ke3 {[%clk 0:00:07.2]} 63...
Ka5 {[%clk 0:00:05.8]} 64. Re4 {[%clk 0:00:07.6]} 64... Rd8 {[%clk 0:00:06]} 65.
Rd4 {[%clk 0:00:07.1]} 65... Re8+ {[%clk 0:00:06]} 66. Kd3 {[%clk 0:00:07.4]}
66... Rb8 {[%clk 0:00:06.9]} 67. Kc3 {[%clk 0:00:07.6]} 67... Rb6 {[%clk
0:00:07]} 68. Rd5+ {[%clk 0:00:07.2]} 68... Rb5 {[%clk 0:00:04.8]} 69. Rxb5+
{[%clk 0:00:07.3]} 69... Ka6 {[%clk 0:00:05]} 70. Rf5+ {[%clk 0:00:07.7]} 70...
Kb6 {[%clk 0:00:05.2]} 71. b4 {[%clk 0:00:07.9]} 71... Kc6 {[%clk 0:00:05.6]}
72. a5 {[%clk 0:00:08.4]} 72... Kb7 {[%clk 0:00:05.9]} 73. a6+ {[%clk
0:00:08.5]} 73... Kb6 {[%clk 0:00:05.8]} 74. Rf6+ {[%clk 0:00:07.6]} 74... Ka7
{[%clk 0:00:04.8]} 75. Kd4 {[%clk 0:00:07.5]} 75... Kb8 {[%clk 0:00:04.9]} 76.
Kc5 {[%clk 0:00:07.7]} 76... Kc8 {[%clk 0:00:05.2]} 77. Rf7 {[%clk 0:00:07.5]}
77... Kb8 {[%clk 0:00:03.8]} 78. Kc6 {[%clk 0:00:07.5]} 78... Ka8 {[%clk
0:00:03.7]} 79. Kb6 {[%clk 0:00:07.6]} 79... Kb8 {[%clk 0:00:04]} 80. Rf8#
{[%clk 0:00:07.8]} 1-0

[Event "Late-Titled-Tuesday-Blitz-February-13-2024"]
[Site "Chess.com"]
[Date "2024.02.13"]
[Round "10"]
[White "TigrVShlyape"]
[Black "DenLaz"]
[Result "1-0"]
[WhiteElo "2890"]
[BlackElo "3043"]
[TimeControl "180+1"]
[EndTime "15:56:45 PST"]
[Termination "TigrVShlyape won by resignation"]

1. d4 {[%clk 0:03:00.9]} 1... Nf6 {[%clk 0:03:00]} 2. Bf4 {[%clk 0:03:00.6]}
2... d5 {[%clk 0:03:00.6]} 3. e3 {[%clk 0:03:00.4]} 3... c5 {[%clk 0:03:01.2]}
4. c3 {[%clk 0:02:59.9]} 4... Nc6 {[%clk 0:03:01.2]} 5. Nd2 {[%clk 0:02:59.9]}
5... Bg4 {[%clk 0:03:01.5]} 6. Ngf3 {[%clk 0:02:53.9]} 6... e6 {[%clk
0:03:01.3]} 7. Qb3 {[%clk 0:02:47.2]} 7... Qc8 {[%clk 0:03:00.7]} 8. a4 {[%clk
0:02:46.2]} 8... Be7 {[%clk 0:02:59.4]} 9. h3 {[%clk 0:02:38.2]} 9... Bh5 {[%clk
0:02:59.3]} 10. Be2 {[%clk 0:02:38.6]} 10... O-O {[%clk 0:02:59.2]} 11. O-O
{[%clk 0:02:37.8]} 11... Rd8 {[%clk 0:02:58.3]} 12. a5 {[%clk 0:02:35.5]} 12...
h6 {[%clk 0:02:53.6]} 13. Qa4 {[%clk 0:02:30.6]} 13... a6 {[%clk 0:02:40.9]} 14.
Rfc1 {[%clk 0:02:27.3]} 14... Ne4 {[%clk 0:02:37.9]} 15. Bf1 {[%clk 0:02:19.5]}
15... Nxd2 {[%clk 0:02:29]} 16. Nxd2 {[%clk 0:02:19.1]} 16... Qd7 {[%clk
0:02:29.7]} 17. Nb3 {[%clk 0:02:12.5]} 17... c4 {[%clk 0:02:18.8]} 18. Nd2
{[%clk 0:02:12.6]} 18... Rac8 {[%clk 0:01:53.2]} 19. b3 {[%clk 0:02:10]} 19...
cxb3 {[%clk 0:01:53.6]} 20. Qxb3 {[%clk 0:02:08.2]} 20... Bg6 {[%clk 0:01:45.7]}
21. c4 {[%clk 0:02:04.1]} 21... e5 {[%clk 0:01:08.3]} 22. dxe5 {[%clk
0:01:56.1]} 22... d4 {[%clk 0:01:07.8]} 23. Nf3 {[%clk 0:01:43]} 23... Bc5
{[%clk 0:00:59.5]} 24. exd4 {[%clk 0:01:34.6]} 24... Nxd4 {[%clk 0:00:56.9]} 25.
Nxd4 {[%clk 0:01:34.6]} 25... Bxd4 {[%clk 0:00:57.8]} 26. Ra2 {[%clk 0:01:26.2]}
26... Be4 {[%clk 0:00:57.2]} 27. Re1 {[%clk 0:01:20.6]} 27... Qf5 {[%clk
0:00:53.8]} 28. Qg3 {[%clk 0:01:13.3]} 28... Rc6 {[%clk 0:00:52.1]} 29. Qg4
{[%clk 0:01:08.6]} 29... Bc3 {[%clk 0:00:36.9]} 30. Qxf5 {[%clk 0:01:04.5]}
30... Bxf5 {[%clk 0:00:37.8]} 31. Rc1 {[%clk 0:01:03.2]} 31... Bb4 {[%clk
0:00:36]} 32. Be3 {[%clk 0:01:00.4]} 32... Bc5 {[%clk 0:00:29.6]} 33. Bxc5
{[%clk 0:00:49.4]} 33... Rxc5 {[%clk 0:00:30.5]} 34. Re1 {[%clk 0:00:45.7]}
34... Rd4 {[%clk 0:00:26.4]} 35. Rb2 {[%clk 0:00:34.3]} 35... Rxa5 {[%clk
0:00:26]} 36. Rxb7 {[%clk 0:00:34.3]} 36... Rc5 {[%clk 0:00:26.1]} 37. Ra7
{[%clk 0:00:30.6]} 37... a5 {[%clk 0:00:25.7]} 38. Ra1 {[%clk 0:00:26.5]} 38...
Rxe5 {[%clk 0:00:21.6]} 39. R7xa5 {[%clk 0:00:26]} 39... Rxa5 {[%clk 0:00:21.9]}
40. Rxa5 {[%clk 0:00:25.9]} 40... Be6 {[%clk 0:00:22]} 41. Ra1 {[%clk
0:00:25.2]} 41... Kf8 {[%clk 0:00:20.3]} 42. Rc1 {[%clk 0:00:24.3]} 42... Ke7
{[%clk 0:00:20.8]} 43. c5 {[%clk 0:00:24.6]} 43... Kd7 {[%clk 0:00:21.4]} 44.
Be2 {[%clk 0:00:23.8]} 44... Kc7 {[%clk 0:00:20]} 45. Bf3 {[%clk 0:00:23.7]}
45... Bd5 {[%clk 0:00:19.9]} 46. Bxd5 {[%clk 0:00:21.9]} 46... Rxd5 {[%clk
0:00:20.8]} 47. Ra1 {[%clk 0:00:22]} 47... Kc6 {[%clk 0:00:19.7]} 48. Ra7 {[%clk
0:00:21.3]} 48... Rd7 {[%clk 0:00:17.4]} 49. Ra5 {[%clk 0:00:19.3]} 49... Rd5
{[%clk 0:00:15.8]} 50. g4 {[%clk 0:00:18.9]} 50... f5 {[%clk 0:00:08.9]} 51. Kg2
{[%clk 0:00:14.5]} 51... fxg4 {[%clk 0:00:09.1]} 52. hxg4 {[%clk 0:00:14.6]}
52... h5 {[%clk 0:00:08.4]} 53. Ra6+ {[%clk 0:00:13.5]} 53... Kb5 {[%clk
0:00:05.8]} 54. Rg6 {[%clk 0:00:13]} 54... hxg4 {[%clk 0:00:05.4]} 55. Rxg7
{[%clk 0:00:12.8]} 55... Kxc5 {[%clk 0:00:05]} 56. Rxg4 {[%clk 0:00:12.7]} 56...
Kd6 {[%clk 0:00:05.5]} 57. Re4 {[%clk 0:00:12.9]} 57... Rf5 {[%clk 0:00:05.9]}
58. f4 {[%clk 0:00:12.4]} 58... Rf8 {[%clk 0:00:06.5]} 59. Kf3 {[%clk
0:00:12.9]} 59... Kd5 {[%clk 0:00:06.9]} 60. Re1 {[%clk 0:00:12]} 60... Kd6
{[%clk 0:00:06.5]} 61. Re5 {[%clk 0:00:12.1]} 61... Kd7 {[%clk 0:00:03]} 62. Kg4
{[%clk 0:00:10.6]} 62... Rg8+ {[%clk 0:00:03.2]} 63. Kh5 {[%clk 0:00:11]} 63...
Rf8 {[%clk 0:00:03.6]} 64. Kg5 {[%clk 0:00:11.2]} 64... Rg8+ {[%clk 0:00:04.2]}
65. Kh6 {[%clk 0:00:11.7]} 65... Rf8 {[%clk 0:00:04.7]} 66. Re4 {[%clk
0:00:11.9]} 66... Kd6 {[%clk 0:00:04]} 67. Kg7 {[%clk 0:00:12.2]} 67... Rf5
{[%clk 0:00:04.1]} 68. Kg6 {[%clk 0:00:12.3]} 68... Ra5 {[%clk 0:00:05]} 69. f5
{[%clk 0:00:12.7]} 69... Ra2 {[%clk 0:00:05.6]} 70. f6 {[%clk 0:00:12.5]} 70...
Rg2+ {[%clk 0:00:06.5]} 71. Kf7 {[%clk 0:00:12.9]} 71... Rf2 {[%clk 0:00:07.4]}
72. Kg7 {[%clk 0:00:12.9]} 72... Rg2+ {[%clk 0:00:07.8]} 73. Kf8 {[%clk
0:00:13.3]} 73... Kd7 {[%clk 0:00:07.4]} 74. f7 {[%clk 0:00:13.3]} 74... Rg1
{[%clk 0:00:08]} 75. Re2 {[%clk 0:00:11.9]} 75... Rg4 {[%clk 0:00:07.5]} 76.
Rd2+ {[%clk 0:00:11.6]} 76... Kc7 {[%clk 0:00:07.7]} 77. Rd1 {[%clk 0:00:09.7]}
77... Rg2 {[%clk 0:00:06.7]} 78. Rd4 {[%clk 0:00:09.8]} 78... Kc6 {[%clk
0:00:05.6]} 79. Ke7 {[%clk 0:00:09.8]} 79... Re2+ {[%clk 0:00:05.7]} 80. Kf6
{[%clk 0:00:10.2]} 80... Rf2+ {[%clk 0:00:05.9]} 81. Kg6 {[%clk 0:00:10.6]}
81... Rg2+ {[%clk 0:00:05.9]} 82. Kf5 {[%clk 0:00:11]} 82... Rf2+ {[%clk
0:00:05.3]} 83. Rf4 {[%clk 0:00:11.3]} 1-0

[Event "Late-Titled-Tuesday-Blitz-February-13-2024"]
[Site "Chess.com"]
[Date "2024.02.13"]
[Round "10"]
[White "Shankland"]
[Black "alexrustemov"]
[Result "1/2-1/2"]
[WhiteElo "2943"]
[BlackElo "2837"]
[TimeControl "180+1"]
[EndTime "15:56:52 PST"]
[Termination "Game drawn - insufficient material"]

1. Nf3 {[%clk 0:03:00.9]} 1... d5 {[%clk 0:02:59.7]} 2. e3 {[%clk 0:02:59]} 2...
Nf6 {[%clk 0:02:58.3]} 3. b3 {[%clk 0:02:59.1]} 3... Bf5 {[%clk 0:02:54.2]} 4.
Bb2 {[%clk 0:02:57.8]} 4... h6 {[%clk 0:02:53.6]} 5. c4 {[%clk 0:02:56.7]} 5...
e6 {[%clk 0:02:51.1]} 6. Nc3 {[%clk 0:02:56.8]} 6... c6 {[%clk 0:02:50.3]} 7.
cxd5 {[%clk 0:02:53.3]} 7... exd5 {[%clk 0:02:48.5]} 8. Ne2 {[%clk 0:02:53.6]}
8... Nbd7 {[%clk 0:02:40.6]} 9. Ng3 {[%clk 0:02:53.7]} 9... Bh7 {[%clk
0:02:38.5]} 10. Be2 {[%clk 0:02:53.5]} 10... Bd6 {[%clk 0:02:37.5]} 11. O-O
{[%clk 0:02:53.6]} 11... O-O {[%clk 0:02:36.4]} 12. d3 {[%clk 0:02:53.3]} 12...
Qe7 {[%clk 0:02:32.2]} 13. a3 {[%clk 0:02:53.3]} 13... a5 {[%clk 0:02:31.8]} 14.
Re1 {[%clk 0:02:51.9]} 14... Rfe8 {[%clk 0:02:31.3]} 15. Bf1 {[%clk 0:02:51.4]}
15... Ne5 {[%clk 0:02:25.7]} 16. Nxe5 {[%clk 0:02:50.6]} 16... Bxe5 {[%clk
0:02:25.9]} 17. Bxe5 {[%clk 0:02:50.6]} 17... Qxe5 {[%clk 0:02:25.9]} 18. d4
{[%clk 0:02:47]} 18... Qd6 {[%clk 0:02:23]} 19. Qd2 {[%clk 0:02:47]} 19... Ne4
{[%clk 0:02:20.4]} 20. Nxe4 {[%clk 0:02:46.4]} 20... Bxe4 {[%clk 0:02:21.1]} 21.
b4 {[%clk 0:02:46.3]} 21... axb4 {[%clk 0:01:57.6]} 22. axb4 {[%clk 0:02:46.3]}
22... b6 {[%clk 0:01:34.7]} 23. Qc3 {[%clk 0:02:43.4]} 23... Rec8 {[%clk
0:01:30.6]} 24. Rec1 {[%clk 0:02:05.9]} 24... Rxa1 {[%clk 0:01:10.2]} 25. Rxa1
{[%clk 0:02:05.7]} 25... c5 {[%clk 0:01:10.7]} 26. bxc5 {[%clk 0:01:59.2]} 26...
bxc5 {[%clk 0:01:11.6]} 27. Ra6 {[%clk 0:01:39.8]} 27... Qc7 {[%clk 0:01:06.4]}
28. f3 {[%clk 0:01:37.1]} 28... Bf5 {[%clk 0:01:04.7]} 29. Ra5 {[%clk
0:01:25.7]} 29... cxd4 {[%clk 0:00:57.4]} 30. Qxc7 {[%clk 0:01:24.8]} 30... Rxc7
{[%clk 0:00:57.8]} 31. Rxd5 {[%clk 0:01:25.4]} 31... Be6 {[%clk 0:00:36.2]} 32.
Rxd4 {[%clk 0:01:25.5]} 32... g5 {[%clk 0:00:33.2]} 33. h4 {[%clk 0:01:23.4]}
33... Kg7 {[%clk 0:00:33.2]} 34. Kf2 {[%clk 0:01:22.3]} 34... Rc3 {[%clk
0:00:30.5]} 35. Bd3 {[%clk 0:01:21.1]} 35... Kf6 {[%clk 0:00:29.6]} 36. h5
{[%clk 0:01:17.5]} 36... Ra3 {[%clk 0:00:27.7]} 37. g4 {[%clk 0:01:17.6]} 37...
Ra2+ {[%clk 0:00:27]} 38. Kg3 {[%clk 0:01:17.9]} 38... Ra3 {[%clk 0:00:27.5]}
39. f4 {[%clk 0:01:11.6]} 39... Ra5 {[%clk 0:00:22.5]} 40. Kf3 {[%clk
0:01:07.2]} 40... Rd5 {[%clk 0:00:21.3]} 41. Rxd5 {[%clk 0:01:05.6]} 41... Bxd5+
{[%clk 0:00:21.2]} 42. e4 {[%clk 0:01:06.3]} 42... Bb7 {[%clk 0:00:14.3]} 43.
Bc4 {[%clk 0:01:04.1]} 43... gxf4 {[%clk 0:00:12.8]} 44. Kxf4 {[%clk 0:01:04.4]}
44... Kg7 {[%clk 0:00:12.4]} 45. e5 {[%clk 0:01:04.5]} 45... Bc8 {[%clk
0:00:11.1]} 46. g5 {[%clk 0:01:03.8]} 46... Bd7 {[%clk 0:00:08.4]} 47. gxh6+
{[%clk 0:00:58.3]} 47... Kxh6 {[%clk 0:00:08.6]} 48. Bxf7 {[%clk 0:00:58.8]}
48... Bc8 {[%clk 0:00:04.9]} 49. Ke4 {[%clk 0:00:58.9]} 49... Kg5 {[%clk
0:00:04.4]} 50. Kd5 {[%clk 0:00:57.9]} 50... Bf5 {[%clk 0:00:03.8]} 51. Kd6
{[%clk 0:00:56.6]} 51... Kh6 {[%clk 0:00:03.2]} 52. Be6 {[%clk 0:00:51.8]} 52...
Bc2 {[%clk 0:00:01.7]} 53. Bg4 {[%clk 0:00:51.3]} 53... Bb3 {[%clk 0:00:01.9]}
54. Bf3 {[%clk 0:00:50.7]} 54... Kg5 {[%clk 0:00:01.4]} 55. Bd5 {[%clk 0:00:48]}
55... Bd1 {[%clk 0:00:01.7]} 56. Bf7 {[%clk 0:00:43.1]} 56... Bg4 {[%clk
0:00:02.2]} 57. Bg6 {[%clk 0:00:42.5]} 57... Bh3 {[%clk 0:00:02]} 58. Ke7 {[%clk
0:00:42.3]} 58... Kh6 {[%clk 0:00:02.3]} 59. Kf6 {[%clk 0:00:42.2]} 59... Bg4
{[%clk 0:00:02.5]} 60. Be8 {[%clk 0:00:40.1]} 60... Bc8 {[%clk 0:00:02.4]} 61.
Bf7 {[%clk 0:00:39.4]} 61... Bg4 {[%clk 0:00:02.6]} 62. Bg6 {[%clk 0:00:39.5]}
62... Bc8 {[%clk 0:00:02.5]} 63. Bf5 {[%clk 0:00:39.1]} 63... Ba6 {[%clk
0:00:02.5]} 64. e6 {[%clk 0:00:38.9]} 64... Kxh5 {[%clk 0:00:02.7]} 65. e7
{[%clk 0:00:38.2]} 65... Bb5 {[%clk 0:00:03.3]} 66. Kf7 {[%clk 0:00:32.5]} 66...
Kh6 {[%clk 0:00:03.6]} 67. Kf8 {[%clk 0:00:31.2]} 67... Kg5 {[%clk 0:00:03.9]}
68. Be6 {[%clk 0:00:30.4]} 68... Kf6 {[%clk 0:00:03.8]} 69. Bf7 {[%clk
0:00:30.8]} 69... Bc6 {[%clk 0:00:03.7]} 70. Be8 {[%clk 0:00:30.9]} 70... Bd5
{[%clk 0:00:04]} 71. Bd7 {[%clk 0:00:31]} 71... Bf7 {[%clk 0:00:04.1]} 72. Bf5
{[%clk 0:00:31.3]} 72... Bh5 {[%clk 0:00:04.1]} 73. Be4 {[%clk 0:00:30.9]} 73...
Bf7 {[%clk 0:00:04.3]} 74. Bc6 {[%clk 0:00:30.3]} 74... Bh5 {[%clk 0:00:04.3]}
75. Bd5 {[%clk 0:00:30.1]} 75... Bg6 {[%clk 0:00:04.2]} 76. Bf3 {[%clk
0:00:30.8]} 76... Bf7 {[%clk 0:00:04]} 77. Bc6 {[%clk 0:00:31.5]} 77... Bg6
{[%clk 0:00:04.1]} 78. Be8 {[%clk 0:00:32]} 78... Bf5 {[%clk 0:00:04.1]} 79. Bf7
{[%clk 0:00:31.1]} 79... Bd7 {[%clk 0:00:04.2]} 80. Bh5 {[%clk 0:00:31.8]} 80...
Bc6 {[%clk 0:00:04.5]} 81. Be8 {[%clk 0:00:31.6]} 81... Bd5 {[%clk 0:00:04.4]}
82. Bd7 {[%clk 0:00:30.9]} 82... Bf7 {[%clk 0:00:04.5]} 83. Bg4 {[%clk
0:00:29.1]} 83... Bg6 {[%clk 0:00:04.8]} 84. e8=Q {[%clk 0:00:29]} 84... Bxe8
{[%clk 0:00:04.9]} 1/2-1/2